bitfinex/quotes_SOLUSD_20250912
["timestamp","ask_amount","ask_price","bid_price","bid_amount"]
[1757654272388,0.1,238.68,238.64,4.19041233]
[1757654274112,0.1,238.68,238.62,14.6676165]
[1757654274474,0.1,238.68,238.62,15.3276165]
[1757654275980,0.1,238.68,238.62,14.6676165]
[1757654276186,0.1,238.68,238.64,4.19041233]
[1757654277188,1.04148101,238.65,238.64,4.19041233]
[1757654277421,1.04148101,238.65,238.61,4.19088037]
[1757654277609,2.92782008,238.65,238.61,4.19088037]
[1757654277786,0.39148101,238.65,238.62,0.68]
[1757654277994,0.39148101,238.65,238.61,4.19088037]
[1757654278311,0.39148101,238.65,238.61,0.68]
[1757654279381,0.39148101,238.65,238.62,0.68]
[1757654280113,0.39148101,238.65,238.63,4.19058793]
[1757654280606,0.39148101,238.65,238.62,4.8707542]
[1757654281589,0.1,238.68,238.65,26.0]
[1757654281790,0.1,238.68,238.66,0.68]
[1757654282210,0.1,238.68,238.67,4.18988561]
[1757654282609,0.1,238.68,238.67,4.86988561]
[1757654283195,0.1,238.68,238.62,20.95381778]
[1757654283196,0.1,238.68,238.62,10.47681874]
[1757654283393,0.1,238.68,238.63,0.68]
[1757654283606,0.1,238.68,238.64,0.68]
[1757654284002,0.1,238.68,238.65,26.0]
[1757654284319,1e-08,238.68,238.66,4.87006117]
[1757654284709,1e-08,238.68,238.67,0.68]
[1757654286141,1e-08,238.7,238.67,4.86988561]
[1757654286297,1e-08,238.7,238.68,0.68]
[1757654287140,1e-08,238.7,238.67,14.66459965]
[1757654287141,1e-08,238.7,238.69,0.68]
[1757654288324,1e-08,238.7,238.69,4.86953454]
[1757654295354,1e-08,238.7,238.64,1.67563831]
[1757654295355,0.65000001,238.7,238.64,1.67563831]
[1757654295532,1e-08,238.7,238.64,0.68]
[1757654295929,1e-08,238.7,238.65,26.0]
[1757654296340,1e-08,238.7,238.66,0.68]
[1757654296735,1e-08,238.7,238.67,0.68]
[1757654296931,1e-08,238.7,238.66,15.3452141]
[1757654298256,1e-08,238.7,238.68,4.18971007]
[1757654299481,1e-08,238.7,238.68,4.86971007]
[1757654299861,1e-08,238.7,238.68,4.18971007]
[1757654300399,1e-08,238.7,238.69,0.68]
[1757654302469,1e-08,238.7,238.69,4.86953454]
[1757654304202,1e-08,238.7,238.69,4.18953454]
[1757654305324,1e-08,238.7,238.68,4.18971007]
[1757654305691,1e-08,238.7,238.68,4.85971007]
[1757654306023,1e-08,238.7,238.68,4.18971007]
[1757654306618,1e-08,238.7,238.66,4.18988964]
[1757654307620,1e-08,238.7,238.66,10.47515293]
[1757654310516,1e-08,238.7,238.66,0.67]
[1757654311202,1e-08,238.7,238.67,0.67]
[1757654311723,1e-08,238.7,238.68,0.67]
[1757654312405,1e-08,238.7,238.69,4.18953454]
[1757654314612,1e-08,238.7,238.64,0.67]
[1757654316190,1e-08,238.7,238.69,0.03]
[1757654317213,1e-08,238.7,238.69,0.7]
[1757654317997,1e-08,238.7,238.69,0.03]
[1757654320736,1e-08,238.7,238.69,0.7]
[1757654322317,1e-08,238.7,238.69,4.88953454]
[1757654323712,1e-08,238.7,238.69,30.88953454]
[1757654325240,1e-08,238.7,238.69,34.709105]
[1757654326321,1e-08,238.7,238.69,30.88953454]
[1757654327625,1e-08,238.7,238.69,32.56482196]
[1757654328742,1e-08,238.7,238.69,30.88953454]
[1757654332519,1e-08,238.7,238.69,4.21953454]
[1757654334448,1e-08,238.7,238.69,0.03]
[1757654336463,0.71000001,238.7,238.69,0.03]
[1757654341470,3.83970897,238.7,238.69,0.03]
[1757654341758,17.43530298,238.7,238.69,0.03]
[1757654341939,20.38213222,238.7,238.69,0.03]
[1757654342441,17.43530298,238.7,238.69,0.03]
[1757654342645,20.38213222,238.7,238.69,0.03]
[1757654343052,54.80213222,238.7,238.69,0.03]
[1757654343554,20.38213222,238.7,238.69,0.03]
[1757654343950,3.12970897,238.7,238.69,0.03]
[1757654344154,1e-08,238.7,238.69,0.03]
[1757654344655,1e-08,238.7,238.69,0.71]
[1757654345058,1e-08,238.7,238.69,0.03]
[1757654345963,1e-08,238.7,238.69,0.71]
[1757654347870,1e-08,238.7,238.69,26.71]
[1757654349875,2.94682924,238.77,238.7,24.18935902]
[1757654350053,4.18742933,238.81,238.7,24.18935902]
[1757654350054,2.94682924,238.78,238.7,50.18935902]
[1757654350562,2.94682924,238.78,238.7,30.18935902]
[1757654350762,2.94682924,238.78,238.7,50.18935902]
[1757654351074,2.94682924,238.78,238.7,60.66275659]
[1757654351264,2.94682924,238.78,238.7,40.66275659]
[1757654351771,2.94682924,238.77,238.7,4.18935902]
[1757654353069,2.94682924,238.77,238.69,0.03]
[1757654353070,4.18756449,238.81,238.69,0.03]
[1757654353370,2.94682924,238.77,238.69,0.03]
[1757654354151,0.06,238.78,238.69,0.03]
[1757654354353,2.94682924,238.77,238.69,0.03]
[1757654356067,0.06,238.78,238.69,0.03]
[1757654356279,2.94682924,238.77,238.69,0.03]
[1757654356682,2.94682924,238.75,238.69,0.03]
[1757654356883,2.94682924,238.74,238.69,0.03]
[1757654357377,4.24797067,238.78,238.69,0.03]
[1757654357378,2.94682924,238.73,238.69,0.03]
[1757654358357,2.94682924,238.72,238.69,0.03]
[1757654358579,4.1888032,238.74,238.69,0.03]
[1757654358771,2.94682924,238.72,238.69,0.03]
[1757654359480,4.1888032,238.74,238.69,0.03]
[1757654359664,34.36,238.73,238.69,0.03]
[1757654359866,2.94682924,238.71,238.69,0.03]
[1757654360285,4.18908127,238.72,238.69,0.03]
[1757654360466,2.94682924,238.71,238.69,0.03]
[1757654361169,16.54242325,238.72,238.69,0.03]
[1757654361361,4.18813083,238.77,238.69,0.03]
[1757654361568,2.94682924,238.76,238.69,0.71]
[1757654361787,7.13496007,238.77,238.69,0.71]
[1757654361984,6.07465358,238.76,238.69,0.71]
[1757654362182,3.12782434,238.75,238.7,4.18935902]
[1757654362384,3.12782434,238.74,238.7,4.18935902]
[1757654362580,3.12782434,238.73,238.7,4.18935902]
[1757654362786,3.12782434,238.72,238.7,4.86935902]
[1757654362969,2.94682924,238.76,238.7,4.86935902]
[1757654363166,6.07453711,238.75,238.7,0.68]
[1757654363477,3.12770787,238.74,238.7,0.68]
[1757654363673,3.12770787,238.73,238.7,0.68]
[1757654363874,3.12770787,238.72,238.7,0.68]
[1757654364178,2.94682924,238.73,238.69,0.03]
[1757654364389,3.12744413,238.72,238.69,0.03]
[1757654364570,2.94682924,238.73,238.69,0.03]
[1757654364759,3.127531,238.72,238.69,0.03]
[1757654364965,2.94682924,238.73,238.69,0.03]
[1757654365179,2.94682924,238.71,238.69,0.03]
[1757654365378,3.12746811,238.7,238.69,0.03]
[1757654365789,19.66989136,238.7,238.69,0.03]
[1757654366295,23.85925038,238.7,238.69,0.03]
[1757654366469,20.91242114,238.7,238.69,0.03]
[1757654366668,23.85925038,238.7,238.69,0.03]
[1757654367089,23.85870516,238.7,238.69,0.03]
[1757654369171,20.91187592,238.7,238.69,0.03]
[1757654369385,23.85870516,238.7,238.69,0.03]
[1757654370594,16.7225169,238.7,238.69,0.03]
[1757654370795,19.66934614,238.7,238.69,0.03]
[1757654370995,54.00934614,238.7,238.69,0.03]
[1757654371692,58.19870516,238.7,238.69,0.03]
[1757654371892,55.07178227,238.7,238.69,0.03]
[1757654372094,61.14314762,238.7,238.69,0.03]
[1757654372283,58.19631838,238.7,238.69,0.03]
[1757654372480,39.59559401,238.67,238.66,0.03]
[1757654372674,46.91001573,238.67,238.66,0.03]
[1757654372878,84.19684497,238.67,238.66,0.03]
[1757654373076,49.85684497,238.67,238.66,0.03]
[1757654373280,84.19684497,238.67,238.66,0.03]
[1757654374388,49.85684497,238.67,238.66,0.03]
[1757654374599,84.17684497,238.67,238.66,0.03]
[1757654375280,49.85684497,238.67,238.66,0.03]
[1757654375477,84.17684497,238.67,238.66,0.03]
[1757654375697,49.85684497,238.67,238.66,0.03]
[1757654375882,84.17684497,238.67,238.66,0.03]
[1757654376706,81.23001573,238.67,238.66,0.03]
[1757654376913,49.85684497,238.67,238.66,0.03]
[1757654377089,84.17684497,238.67,238.66,0.03]
[1757654377904,49.85684497,238.67,238.66,0.03]
[1757654378207,84.17684497,238.67,238.66,0.03]
[1757654378582,81.23001573,238.67,238.66,0.03]
[1757654378784,84.1692289,238.67,238.66,0.03]
[1757654379486,46.90239966,238.67,238.66,0.03]
[1757654379685,16.71251405,238.67,238.66,0.71]
[1757654380011,53.97934329,238.67,238.66,0.71]
[1757654380309,53.97934329,238.67,238.66,0.03]
[1757654380688,19.65934329,238.67,238.66,0.03]
[1757654380907,13.59559401,238.72,238.66,0.71]
[1757654381204,3.11532632,238.71,238.66,0.71]
[1757654381687,13.59559401,238.73,238.67,4.18988561]
[1757654382003,37.43576159,238.72,238.68,0.68]
[1757654382213,34.32,238.72,238.68,0.68]
[1757654383810,2.94682924,238.71,238.69,0.68]
[1757654384002,13.59559401,238.69,238.66,0.03]
[1757654384313,2.94682924,238.67,238.66,0.71]
[1757654384612,37.24682924,238.68,238.66,0.71]
[1757654384806,2.94682924,238.67,238.66,0.03]
[1757654385290,2.94682924,238.67,238.66,0.71]
[1757654385710,34.3,238.68,238.66,0.71]
[1757654385904,37.24682924,238.68,238.66,0.71]
[1757654386306,2.94682924,238.68,238.66,0.71]
[1757654386611,3.11784028,238.68,238.66,0.03]
[1757654386822,16.71343429,238.68,238.67,0.68]
[1757654387103,13.59559401,238.68,238.67,0.68]
[1757654388909,2.94682924,238.71,238.67,0.68]
[1757654389206,47.87559401,238.72,238.68,0.68]
[1757654389582,13.59559401,238.72,238.68,0.68]
[1757654389783,0.06,238.69,238.67,4.18987824]
[1757654390214,0.06,238.69,238.66,0.03]
[1757654390397,0.06,238.69,238.67,0.68]
[1757654390711,0.06,238.69,238.68,0.68]
[1757654395600,0.06,238.72,238.7,20.0]
[1757654395815,0.06,238.72,238.71,0.69]
[1757654396799,3.00682924,238.72,238.66,0.72]
[1757654397026,3.11997868,238.71,238.68,20.0]
[1757654397319,0.06,238.72,238.69,0.69]
[1757654397525,0.06,238.72,238.7,4.18935902]
[1757654397816,0.06,238.72,238.7,0.69]
[1757654398199,0.06,238.72,238.68,20.0]
[1757654398400,3.18070791,238.72,238.71,0.69]
[1757654398701,0.06,238.72,238.68,20.69]
[1757654398900,3.18070791,238.72,238.69,0.69]
[1757654399111,0.06,238.72,238.7,0.69]
[1757654399425,0.06,238.72,238.71,0.69]
[1757654399599,0.06,238.72,238.71,4.87918352]
[1757654400331,0.06,238.72,238.71,13.25834035]
[1757654401008,0.06,238.72,238.71,17.44752387]
[1757654403317,0.06,238.78,238.75,20.0]
[1757654403526,0.06,238.78,238.76,0.69]
[1757654403914,0.06,238.78,238.77,0.69]
[1757654404120,0.06,238.78,238.77,3.81151072]
[1757654404625,0.06,238.78,238.77,3.12151072]
[1757654405334,1.94577143,238.78,238.75,34.22]
[1757654405633,5.00645587,238.77,238.74,20.0]
[1757654405932,5.00645587,238.77,238.74,20.69]
[1757654406134,1.88577143,238.75,238.7,20.69]
[1757654406344,1.88577143,238.73,238.71,0.69]
[1757654406533,1.88577143,238.73,238.71,34.22]
[1757654406711,1.88577143,238.73,238.68,32.56834035]
[1757654406907,13.59559401,238.76,238.69,0.69]
[1757654407128,1.88577143,238.72,238.7,34.22]
[1757654407617,1.88577143,238.72,238.69,0.69]
[1757654407819,1.88577143,238.72,238.69,34.91]
[1757654408029,1.88577143,238.72,238.7,0.69]
[1757654408721,3.12028865,238.72,238.7,0.69]
[1757654408910,6.07444142,238.74,238.7,0.69]
[1757654409104,6.07444142,238.74,238.68,24.18970961]
[1757654409105,3.12076647,238.73,238.69,0.03]
[1757654409324,6.13469199,238.73,238.69,0.03]
[1757654409526,0.06,238.73,238.69,0.72]
[1757654409833,1.94577143,238.73,238.69,0.72]
[1757654410150,0.06,238.73,238.7,0.69]
[1757654410438,6.13463748,238.73,238.7,0.69]
[1757654410742,3.12094006,238.72,238.7,0.69]
[1757654410930,3.12094006,238.72,238.69,0.03]
[1757654410931,5.00671149,238.72,238.69,0.03]
[1757654411334,3.12094006,238.72,238.69,0.72]
[1757654411539,7.30997429,238.72,238.69,0.03]
[1757654411728,6.07480566,238.72,238.69,0.03]
[1757654411923,15.48136544,238.7,238.69,0.03]
[1757654412129,18.6024185,238.7,238.69,0.03]
[1757654412717,16.71664707,238.7,238.69,0.03]
[1757654412913,18.6024185,238.7,238.69,0.03]
[1757654413138,18.7424185,238.7,238.69,0.03]
[1757654413341,22.93177752,238.7,238.69,0.03]
[1757654414851,16.71664707,238.7,238.69,0.72]
[1757654415553,16.71664707,238.7,238.69,0.03]
[1757654416746,20.90614431,238.7,238.69,0.03]
[1757654419138,16.71678529,238.7,238.69,0.03]
[1757654419346,16.71678529,238.7,238.69,0.72]
[1757654420628,16.71678529,238.7,238.69,0.03]
[1757654423242,16.71678529,238.7,238.69,0.72]
[1757654423838,16.71678529,238.7,238.69,0.03]
[1757654424043,20.90614431,238.7,238.69,0.03]
[1757654424249,22.79191574,238.7,238.69,0.03]
[1757654424955,16.71678529,238.7,238.69,0.71]
[1757654428166,16.71678529,238.7,238.69,20.71]
[1757654430058,16.71678529,238.7,238.69,0.71]
[1757654430256,16.71678529,238.7,238.69,20.71]
[1757654430953,16.71678529,238.7,238.69,0.71]
[1757654432258,3.12119128,238.7,238.69,4.89953454]
[1757654432561,0.06,238.73,238.72,20.0]
[1757654432972,0.06,238.73,238.72,20.68]
[1757654434080,0.06,238.73,238.72,24.86900804]
[1757654434850,0.06,238.73,238.72,26.54457616]
[1757654435968,0.06,238.73,238.72,60.66457616]
[1757654436546,0.06,238.73,238.72,26.54457616]
[1757654436872,0.06,238.73,238.72,60.64457616]
[1757654439670,0.06,238.73,238.72,26.54457616]
[1757654439879,0.06,238.73,238.72,60.64457616]
[1757654444179,0.06,238.73,238.72,60.62457616]
[1757654448252,0.06,238.73,238.72,22.35556812]
[1757654448452,0.06,238.73,238.72,54.74]
[1757654449365,0.06,238.73,238.72,56.41549793]
[1757654451063,0.06,238.73,238.72,60.60450597]
[1757654452559,0.06,238.73,238.72,25.86450597]
[1757654452780,0.06,238.73,238.72,60.58450597]
[1757654453088,0.06,238.73,238.72,58.90900804]
[1757654455089,0.06,238.73,238.72,24.86900804]
[1757654455289,0.06,238.73,238.72,58.90900804]
[1757654455470,0.06,238.73,238.72,60.58457616]
[1757654458777,0.06,238.73,238.72,25.86457616]
[1757654458996,0.06,238.73,238.72,58.20900804]
[1757654460077,0.06,238.73,238.72,24.18900804]
[1757654460271,0.06,238.73,238.72,58.20900804]
[1757654462671,0.06,238.73,238.72,54.02]
[1757654462869,0.06,238.73,238.72,58.90900804]
[1757654463493,0.06,238.73,238.72,24.88900804]
[1757654463689,0.06,238.73,238.72,58.88900804]
[1757654463919,0.06,238.73,238.72,24.18900804]
[1757654464191,0.06,238.73,238.72,58.18900804]
[1757654464392,0.06,238.73,238.72,25.8644358]
[1757654464697,0.06,238.73,238.72,58.18900804]
[1757654465702,0.06,238.73,238.72,58.88900804]
[1757654466111,0.06,238.73,238.72,24.88900804]
[1757654466298,0.06,238.73,238.72,58.88900804]
[1757654468910,0.06,238.73,238.72,24.18900804]
[1757654469115,0.06,238.73,238.72,58.16900804]
[1757654469502,0.06,238.73,238.72,58.86900804]
[1757654469886,0.06,238.73,238.72,60.54457616]
[1757654470318,0.06,238.73,238.72,26.56457616]
[1757654470529,0.06,238.73,238.72,60.54457616]
[1757654470718,0.06,238.73,238.72,58.86900804]
[1757654470920,0.06,238.73,238.72,60.5444358]
[1757654471908,1.42670616,238.81,238.72,71.0169559]
[1757654472126,1.42670616,238.81,238.78,20.0]
[1757654472305,0.72,238.81,238.79,33.98]
[1757654472505,0.72,238.8,238.79,33.98]
[1757654473101,4.18726285,238.82,238.79,33.98]
[1757654473317,0.72,238.81,238.79,33.98]
[1757654473517,0.72,238.8,238.79,33.98]
[1757654473831,4.18726285,238.82,238.79,33.98]
[1757654474033,0.72,238.81,238.79,33.98]
[1757654474207,3.66514454,238.8,238.76,20.0]
[1757654474409,4.18778005,238.79,238.77,53.96]
[1757654474622,0.72,238.78,238.77,53.96]
[1757654475005,0.72,238.78,238.77,20.0]
[1757654475435,0.72,238.78,238.77,53.96]
[1757654475636,0.72,238.78,238.76,33.96]
[1757654475853,0.72,238.78,238.75,20.0]
[1757654476138,4.18778005,238.79,238.76,33.96]
[1757654476634,0.72,238.78,238.77,20.0]
[1757654477931,0.72,238.79,238.77,20.0]
[1757654478136,3.66514454,238.78,238.72,20.0]
[1757654478437,3.66514454,238.78,238.73,33.94]
[1757654478606,0.72,238.78,238.73,33.94]
[1757654478801,0.72,238.78,238.72,20.0]
[1757654479033,16.54073855,238.8,238.73,34.64]
[1757654479236,17.26073855,238.8,238.76,20.0]
[1757654479430,16.54073855,238.8,238.76,20.0]
[1757654479607,0.72,238.79,238.76,20.0]
[1757654480909,20.72851034,238.8,238.76,20.0]
[1757654481120,21.44851034,238.8,238.76,20.0]
[1757654481316,0.72,238.79,238.76,20.0]
[1757654481517,0.72,238.79,238.77,0.03]
[1757654481723,3.66514454,238.79,238.77,0.03]
[1757654481917,0.72,238.79,238.77,0.03]
[1757654482232,2.94514454,238.79,238.77,0.03]
[1757654482431,2.94514454,238.8,238.77,0.03]
[1757654482614,0.72,238.79,238.77,0.03]
[1757654482822,13.65559401,238.81,238.77,0.03]
[1757654483016,16.60073855,238.81,238.77,0.03]
[1757654483330,16.60073855,238.81,238.77,0.73]
[1757654483514,3.00514454,238.81,238.78,33.92]
[1757654483914,3.13551939,238.8,238.78,33.92]
[1757654484143,3.13551939,238.79,238.78,33.92]
[1757654485415,3.13551939,238.79,238.78,58.75795544]
[1757654485724,0.06,238.81,238.8,20.0]
[1757654485932,3.19528888,238.81,238.8,53.92]
[1757654486133,6.81043436,238.81,238.79,20.0]
[1757654486317,3.13528982,238.8,238.79,20.0]
[1757654486738,3.13528982,238.8,238.79,20.65]
[1757654487739,0.06,238.81,238.79,20.65]
[1757654487942,0.06,238.81,238.8,33.92]
[1757654488115,3.19483962,238.81,238.8,33.92]
[1757654488310,3.19483962,238.81,238.8,34.57]
[1757654489424,3.19483962,238.81,238.8,38.75760469]
[1757654491651,3.19483962,238.81,238.8,4.83760469]
[1757654491652,0.06,238.81,238.8,4.83760469]
[1757654491814,0.06,238.81,238.8,34.55]
[1757654492831,0.06,238.81,238.8,35.57500681]
[1757654493026,0.06,238.81,238.8,1.67500681]
[1757654493235,3.86214132,238.81,238.77,20.03]
[1757654493519,3.86214132,238.81,238.8,20.0]
[1757654493520,3.67514454,238.81,238.8,20.0]
[1757654493744,3.67514454,238.81,238.77,0.03]
[1757654493745,13.59559401,238.8,238.77,0.03]
[1757654494046,3.13208808,238.79,238.77,0.03]
[1757654494248,3.13208808,238.78,238.77,0.03]
[1757654494434,3.13208808,238.78,238.77,20.03]
[1757654494627,3.13208808,238.78,238.77,24.21813083]
[1757654494830,3.13208808,238.78,238.77,24.86813083]
[1757654495226,0.06,238.81,238.77,24.86813083]
[1757654495436,0.06,238.81,238.78,33.88]
[1757654495437,3.13230268,238.8,238.78,33.88]
[1757654495643,3.13230268,238.79,238.78,33.88]
[1757654496248,3.13230268,238.79,238.77,20.03]
[1757654496546,3.80243766,238.78,238.77,20.03]
[1757654496722,20.34317621,238.78,238.77,0.03]
[1757654498659,16.72803167,238.78,238.77,0.03]
[1757654500341,17.39803167,238.78,238.77,0.03]
[1757654500536,16.72803167,238.78,238.77,0.03]
[1757654502328,19.67317621,238.78,238.77,0.03]
[1757654502527,20.34317621,238.78,238.77,0.03]
[1757654502756,19.67317621,238.78,238.77,0.03]
[1757654503055,16.72803167,238.78,238.77,0.03]
[1757654503971,16.72803167,238.78,238.77,20.03]
[1757654506059,0.06,238.81,238.77,20.68]
[1757654506234,3.13222667,238.8,238.78,0.65]
[1757654506436,0.67,238.8,238.77,20.03]
[1757654506634,0.06,238.81,238.77,20.03]
[1757654506841,3.13226248,238.8,238.77,20.03]
[1757654507062,0.06,238.81,238.77,24.86807063]
[1757654507364,3.13225182,238.8,238.77,24.86807063]
[1757654507552,0.06,238.81,238.77,24.21807063]
[1757654507758,3.13230181,238.8,238.78,0.65]
[1757654507960,0.06,238.81,238.78,4.83791662]
[1757654508161,3.13230167,238.8,238.78,4.83791662]
[1757654508350,0.06,238.81,238.78,4.83791662]
[1757654508548,3.13234757,238.8,238.79,0.65]
[1757654508759,0.06,238.81,238.79,0.65]
[1757654508956,3.13226035,238.8,238.78,4.18791662]
[1757654509248,0.06,238.81,238.79,20.0]
[1757654509447,3.13222707,238.8,238.79,20.0]
[1757654511172,20.34296562,238.8,238.79,20.0]
[1757654511480,13.59559401,238.79,238.77,20.03]
[1757654511668,3.13222707,238.78,238.77,20.68]
[1757654511837,0.06,238.81,238.79,20.0]
[1757654512040,3.13232182,238.8,238.79,20.0]
[1757654512258,16.72791583,238.8,238.79,20.0]
[1757654512662,16.72791583,238.8,238.77,0.03]
[1757654512663,13.59559401,238.79,238.77,20.03]
[1757654513146,7.19260635,238.81,238.77,20.03]
[1757654513147,13.59559401,238.8,238.77,20.68]
[1757654513347,3.13240274,238.79,238.77,20.68]
[1757654513666,3.13240289,238.78,238.77,20.68]
[1757654515272,6.07754743,238.78,238.77,20.03]
[1757654515481,20.35314144,238.78,238.77,0.03]
[1757654515683,19.67314144,238.78,238.77,0.03]
[1757654515987,19.67314144,238.78,238.77,20.03]
[1757654516855,19.67314144,238.78,238.77,0.03]
[1757654518077,16.7279969,238.78,238.77,0.03]
[1757654518273,19.67314144,238.78,238.77,0.03]
[1757654518679,19.67314144,238.78,238.77,20.03]
[1757654519062,19.67314144,238.78,238.77,20.72]
[1757654519271,6.07754743,238.78,238.77,20.72]
[1757654519491,6.07754743,238.78,238.77,20.03]
[1757654520399,5.0178239,238.78,238.77,20.03]
[1757654520582,18.61341791,238.78,238.77,0.03]
[1757654520784,23.48137335,238.78,238.77,0.03]
[1757654521160,19.29341791,238.78,238.77,0.03]
[1757654521875,18.61341791,238.78,238.77,0.03]
[1757654522189,3.13240289,238.78,238.77,20.72]
[1757654526599,3.13240289,238.78,238.77,24.90813083]
[1757654528188,3.13240289,238.78,238.77,20.72]
[1757654529198,3.13240289,238.78,238.77,20.03]
[1757654529502,3.13240289,238.78,238.77,20.72]
[1757654529706,3.13240289,238.78,238.77,20.03]
[1757654530075,3.13240289,238.78,238.77,20.72]
[1757654531004,1.88542101,238.8,238.77,24.9081259]
[1757654531296,3.13105167,238.79,238.78,0.69]
[1757654531670,3.13105167,238.79,238.77,20.03]
[1757654531968,1.88542101,238.8,238.77,20.03]
[1757654532194,3.13119312,238.79,238.77,20.03]
[1757654532397,1.88542101,238.8,238.77,20.03]
[1757654532591,1.88542101,238.78,238.77,20.03]
[1757654532779,3.13132057,238.78,238.77,20.03]
[1757654532980,19.29233559,238.78,238.77,0.03]
[1757654533284,17.40691458,238.78,238.77,0.03]
[1757654533487,3.13132057,238.78,238.77,0.03]
[1757654533690,3.13132057,238.78,238.77,20.72]
[1757654533888,3.13132057,238.79,238.77,20.72]
[1757654534210,1.88542101,238.8,238.77,20.03]
[1757654534211,3.13132057,238.78,238.77,20.03]
[1757654534491,3.13132057,238.79,238.77,20.03]
[1757654534794,3.13132057,238.78,238.77,20.03]
[1757654535001,5.01674158,238.78,238.77,0.03]
[1757654535372,18.61233559,238.78,238.77,0.03]
[1757654535601,19.29252864,238.78,238.77,0.03]
[1757654536384,18.61252864,238.78,238.77,0.03]
[1757654536702,3.13151362,238.78,238.77,0.72]
[1757654536997,1.954162,238.8,238.77,20.72]
[1757654537205,3.13132644,238.79,238.78,0.69]
[1757654537372,3.13132644,238.79,238.77,20.03]
[1757654537574,3.13132644,238.78,238.77,20.03]
[1757654537902,5.01674745,238.78,238.77,20.03]
[1757654540082,1.954162,238.8,238.79,20.0]
[1757654540275,5.08641617,238.8,238.79,20.0]
[1757654540476,5.08641617,238.8,238.79,20.69]
[1757654541385,5.08641617,238.8,238.79,20.0]
[1757654541704,1.954162,238.8,238.79,20.0]
[1757654541878,5.08620241,238.8,238.79,20.0]
[1757654544706,5.08620241,238.8,238.79,20.69]
[1757654546090,1.954162,238.8,238.79,20.69]
[1757654547019,1.954162,238.8,238.79,20.0]
[1757654548022,1.954162,238.8,238.79,20.67]
[1757654548834,1.954162,238.8,238.79,20.0]
[1757654549123,5.08545654,238.8,238.79,20.0]
[1757654549835,1.954162,238.8,238.79,24.85778005]
[1757654550521,1.954162,238.8,238.79,26.81194205]
[1757654551604,1.954162,238.8,238.79,60.51194205]
[1757654552101,1.954162,238.8,238.79,26.81194205]
[1757654552335,1.954162,238.8,238.79,60.51194205]
[1757654553223,1.954162,238.8,238.79,26.81194205]
[1757654553403,1.954162,238.8,238.79,60.49194205]
[1757654554222,0.06,238.81,238.79,60.49194205]
[1757654554424,0.06,238.81,238.8,0.67]
[1757654555823,0.06,238.81,238.8,34.35]
[1757654556895,2.57542101,238.93,238.8,34.35]
[1757654556896,0.1,239.05,238.99,20.0]
[1757654557115,13.63376274,239.0,238.97,20.0]
[1757654557325,1.88542101,238.98,238.97,20.0]
[1757654557824,2.57542101,238.98,238.97,20.0]
[1757654558015,5.69954485,238.98,238.97,20.0]
[1757654558211,3.12412384,238.98,238.97,20.0]
[1757654559024,3.12412384,238.99,238.97,20.0]
[1757654559324,3.75,239.0,238.97,20.0]
[1757654559631,0.69,238.99,238.97,20.0]
[1757654559921,5.63542101,239.0,238.97,20.0]
[1757654560128,10.50956281,239.0,238.97,20.0]
[1757654560838,0.69,238.99,238.97,20.0]
[1757654561038,4.44,239.0,238.97,20.0]
[1757654561535,8.6241194,239.0,238.97,20.0]